Cogmind - Beta 15 @@@ ROGUE MODE // 2025.08.08 @ 12:47:52 Player: Inverisimilidude Result: Destroyed by G-67 Veteran with Field Laser Performance ------------- Evolutions (3) 1500 Regions Visited (12) 2400 Robots Destroyed (102) 510 Value Destroyed (2714) 2714 Prototype IDs (37) 740 Alien Tech Used (0) 0 Bonus (842) 842 TOTAL SCORE: 8706 Bonus ------- High Alert Combat Kills 52 Follower Combat Kills 190 Aligned with FarCom 300 Met Data Miner 300 Cogmind --------- Core Integrity 0/700 Matter 232/300 Energy 31/290 System Corruption 2% Temperature Cool (9) Movement Treading (165) Location -6/Proximity Caves Parts ------- > --- POWER (1) -------- Reinforced Deuterium Engine > --- PROPULSION (5) --- Light Treads Armored Treads > --- UTILITY (5) ------ Advanced Visual Processing Unit Improved Sensor Array (fused) Improved Signal Interpreter Reaction Control System Hacking Suite > --- WEAPON (2) ------- Shock Bomb Launcher > --- INVENTORY (5) ---- Chronowheel Enhanced Autogun Makeshift Hammer Peak State ------------ > --- POWER ------------ Cooled Ion Engine > --- PROPULSION ------- Light Treads Advanced Treads Carbon-fiber Leg Improved Carbon-fiber Leg Xenon Bombardment Thruster > --- UTILITY ---------- Huge Storage Unit Advanced Visual Processing Unit Seismic Detector Improved Targeting Computer Hardened Medium Armor Plating > --- WEAPON ----------- Heavy Assault Rifle Enhanced Autogun > --- INVENTORY -------- Deuterium Engine Deuterium Engine Light Treads Wheel Compact Wheel Compact Matter Pod Advanced Visual Processing Unit Advanced Visual Processing Unit Advanced Visual Processing Unit Sensor Array Improved Sensor Array Light Armor Plating Authchip [R/Combat] High-powered Tractor Beam Chronowheel Heavy EM Pulse Gun Heavy Assault Rifle Heavy Assault Rifle Minigun Enhanced Autogun Enhanced Autogun Rocket Launcher Rocket Launcher Mining Claw [Rating: 40] Favorites ----------- Power Cooled Ion Engine Engine Cooled Ion Engine Power Core Light Nuclear Core Propulsion Light Treads Treads Light Treads Leg Carbon-fiber Leg Wheel Armored Wheel Hover Unit Hover Unit Flight Unit VTOL Module Utility Huge Storage Unit Device Sensor Array Storage Huge Storage Unit Processor Advanced Visual Processing Unit Hackware Hacking Suite Protection Hardened Medium Armor Plating Weapon Enhanced Autogun Ballistic Gun Enhanced Autogun Ballistic Cannon Light Cannon Launcher Rocket Launcher Special Weapon Remote Datajack Impact Weapon Makeshift Hammer Build | -11 -10 -10 -9 -9 -9 -8 -8 -7 -7 -7 -7 -6 ------- Run | Yrd Mat Min Mat Min Exi Min Mat Fac Low Low Dat Pro Slots Evolved 6 | . . . 2 . . . 2 2 . . . . Power . | . . . . . . . . . . . . . Propulsion 3 | . . . 1 . . . 1 1 . . . . Utility 3 | . . . 1 . . . 1 1 . . . . Weapon . | . . . . . . . . . . . . . Parts Attached 74 | 8 7 1 11 1 . 2 6 22 7 7 . 2 Power 9 | 1 1 . 3 . . . . 2 . 2 . . Engine 6 | 1 . . 3 . . . . 1 . 1 . . Core 3 | . 1 . . . . . . 1 . 1 . . Reactor . | . . . . . . . . . . . . . Propulsion 24 | 3 1 . 3 . . . 2 12 1 2 . . Treads 10 | 1 . . 2 . . . 1 4 . 2 . . Leg 2 | . . . . . . . 1 1 . . . . Wheel 5 | 2 . . 1 . . . . 2 . . . . Hover 1 | . 1 . . . . . . . . . . . Flight 6 | . . . . . . . . 5 1 . . . Utility 20 | 2 1 1 3 . . . 3 5 3 1 . 1 Device 8 | 1 1 . . . . . . 2 2 1 . 1 Storage 4 | 1 . . 3 . . . . . . . . . Processor 5 | . . . . . . . 3 1 1 . . . Hackware 1 | . . . . . . . . 1 . . . . Protection 2 | . . 1 . . . . . 1 . . . . Artifact . | . . . . . . . . . . . . . Weapon 21 | 2 4 . 2 1 . 2 1 3 3 2 . 1 Energy Gun . | . . . . . . . . . . . . . Energy Cannon . | . . . . . . . . . . . . . Ballistic Gun 12 | 2 . . 2 . . 1 1 3 2 1 . . Ballistic Cannon 3 | . 3 . . . . . . . . . . . Launcher 3 | . . . . 1 . 1 . . . . . 1 Special Weapon 2 | . 1 . . . . . . . 1 . . . Impact Weapon 1 | . . . . . . . . . . 1 . . Slashing Weapon . | . . . . . . . . . . . . . Piercing Weapon . | . . . . . . . . . . . . . Special Melee Weapon . | . . . . . . . . . . . . . Unidentified Prototypes 2 | . . . 2 . . . . . . . . . Parts Lost 24 | . . . . . . . . 19 1 4 . . Power 1 | . . . . . . . . 1 . . . . Propulsion 12 | . . . . . . . . 9 1 2 . . Utility 6 | . . . . . . . . 5 . 1 . . Weapon 5 | . . . . . . . . 4 . 1 . . Highest Loss Streak 10 | . . . . . . . . 10 1 4 . . To Critical Strikes . | . . . . . . . . . . . . . Average Backups 15 | 3 7 8 10 17 21 20 21 23 2 4 5 4 Power 1 | . 1 1 1 2 2 2 2 1 . . . . Propulsion 2 | 2 3 2 1 3 3 3 2 3 . . . . Utility 4 | . . . 1 5 6 6 8 9 . 1 1 . Weapon 6 | . 3 4 5 7 9 8 8 8 . 2 3 2 Tool/Special . | . . . . . . . . . . . . . Unused Backups 24 | 1 2 2 5 . . . . 13 . . . 1 Power 3 | . 1 . 2 . . . . . . . . . Propulsion 2 | 1 . . 1 . . . . . . . . . Utility 9 | . . . . . . . . 9 . . . . Weapon 9 | . 1 2 2 . . . . 4 . . . . Tool/Special 1 | . . . . . . . . . . . . 1 Average Slot Usage (%) 90 | . 100 100 99 100 79 99 99 95 69 59 53 55 Engine 7 | . 11 . 10 11 11 11 9 3 . 2 7 7 Core 1 | . 2 14 . . . . . 3 . . . . Treads 18 | . 14 14 22 22 22 22 24 24 . 4 15 15 Wheel 8 | . 13 14 11 11 11 11 8 7 . . . . Flight 1 | . . . . . . . . . 17 8 . . Device 8 | . 14 12 10 11 11 11 . 6 6 7 7 8 Storage 8 | . 14 14 15 11 11 11 9 6 . . . . Processor 7 | . . . . . . . 17 15 22 19 15 15 Hackware 1 | . . . . . . . . . 7 7 7 7 Protection 6 | . . 1 5 11 11 11 9 5 . . . . Ballistic Gun 12 | . 3 . 21 18 1 16 16 14 6 3 . . Ballistic Cannon 2 | . 24 28 . . . . . . . . . . Launcher 1 | . . . . 3 1 5 1 . . . . 1 Peak Build Rating 40 | 7 9 12 23 23 22 23 33 40 33 35 22 28 Average Rating 24 | 5 7 9 21 22 17 22 29 35 29 25 22 22 On Entrance 17 | . 7 9 10 22 22 18 22 33 15 29 22 22 Naked Turns . | . . . . . . . . . . . . . Heaviest Build 104 | 13 17 24 103 104 104 104 103 104 8 16 16 16 Greatest Support 91 | 10 20 10 12 12 12 12 40 91 10 40 40 40 Greatest Overweight (x) 8 | 2 1 2 8 8 8 8 8 8 1 2 . . Average Overweight (x) 3 | . . 1 2 8 8 8 7 5 . . . . Largest Inventory Capacity 25 | 8 8 8 25 25 25 25 25 25 5 5 5 5 Average Capacity 18 | 7 8 8 13 25 25 25 25 24 5 5 5 5 Most Carried 25 | 6 8 8 15 19 22 22 24 25 4 5 5 5 Average Carried 15 | 3 7 7 10 17 21 20 21 23 2 4 5 4 Final Capacity 25 | 8 8 8 25 25 25 25 25 5 5 5 5 5 Final Carried 24 | 6 8 8 14 19 22 22 24 4 3 5 5 3 Class Distribution -------------------- 69% | Mutant 18% | Skirmisher 4% | Derelict-Scout 3% | Commander-Scout Dominant Class ---------------- Mutant | -10/Materials Mutant | -10/Mines Mutant | -9/Materials Mutant | -9/Mines Mutant | -9/Exiles Skirmisher | -8/Mines Mutant | -8/Materials Mutant | -7/Factory Commander-Scout | -7/Lower Caves Derelict-Scout | -7/Lower Caves Mutant | -7/Data Miner Mutant | -6/Proximity Caves Resources | -11 -10 -10 -9 -9 -9 -8 -8 -7 -7 -7 -7 -6 ----------- Run | Yrd Mat Min Mat Min Exi Min Mat Fac Low Low Dat Pro Matter Collected 2948 | 260 135 149 668 135 . 196 270 496 302 337 . . Remotely . | . . . . . . . . . . . . . Salvage Created 3245 | 113 138 197 651 202 . 335 264 1245 . 45 . 55 Parts 193 | 8 4 10 50 14 . 23 18 60 . 2 . 4 Haulers Intercepted 8 | . 1 . 3 . . . 1 3 . . . . Recyclers Shooed 2 | . . . . . . . . 2 . . . . Parts Field Recycled . | . . . . . . . . . . . . . Retrieved Matter . | . . . . . . . . . . . . . Parts Self-Destructed 11 | . . . . . . . . . . 9 . 2 Prevented . | . . . . . . . . . . . . . Kills | -11 -10 -10 -9 -9 -9 -8 -8 -7 -7 -7 -7 -6 ------- Run | Yrd Mat Min Mat Min Exi Min Mat Fac Low Low Dat Pro Combat Hostiles Destroyed 70 | . 2 2 11 8 . 10 6 29 . 1 . 1 Guns 37 | . . . 11 4 . 2 4 15 . 1 . . Cannons 4 | . 2 2 . . . . . . . . . . AOE 29 | . . . . 4 . 8 2 14 . . . 1 Classes Destroyed 13 | 2 3 1 2 2 . . 2 1 . . . . Worker 7 | . . 2 . . . 1 . 4 . . . . Builder 2 | . . . . . . . 1 1 . . . . Tunneler 2 | 1 . . . . . 1 . . . . . . Hauler 8 | . 1 . 3 . . . 1 3 . . . . Recycler 8 | 1 . 1 1 . . 1 . 4 . . . . Operator 1 | . . . . . . . 1 . . . . . Watcher 4 | . 1 . 1 . . . . 2 . . . . Swarmer 25 | . . . 3 4 . 4 3 11 . . . . Grunt 33 | . 2 2 5 2 . 6 . 15 . . . 1 Brawler 2 | . . . . 1 . . . 1 . . . . Duelist 1 | . . . . 1 . . . . . . . . Sentry 6 | . . . 3 . . . 3 . . . . . Programmer 3 | . . . . . . . . 2 . 1 . . Best Kill Streak 17 | 1 2 2 3 4 . 5 3 17 . 1 . 1 Combat Bots Only 11 | . 2 2 3 4 . 4 3 11 . 1 . 1 Max Kills in Single Turn 4 | 1 1 1 1 3 . 3 3 4 . 1 . 1 Gunslinging . | . . . . . . . . . . . . . Exploded 3 | . . . . 3 . 3 2 3 . . . 1 Melee . | . . . . . . . . . . . . . Uniques/NPCs Destroyed . | . . . . . . . . . . . . . Combat | -11 -10 -10 -9 -9 -9 -8 -8 -7 -7 -7 -7 -6 -------- Run | Yrd Mat Min Mat Min Exi Min Mat Fac Low Low Dat Pro Hostile Shots Fired 376 | . 3 4 27 17 . 16 30 242 3 21 . 13 Missed 123 | . 1 1 4 6 . 4 12 84 . 6 . 5 Hits 253 | . 2 3 23 11 . 12 18 158 3 15 . 8 Melee 2 | . . . . 2 . . . . . . . . Projectile 251 | . 2 3 23 9 . 12 18 158 3 15 . 8 Critical Strikes 10 | . . . 3 . . 1 2 3 . 1 . . Damage Taken 3830 | . 27 40 341 145 . 210 250 2179 57 396 . 185 Core 784 | . 11 . 16 . . . 42 433 22 228 . 32 Absorbed by Shields . | . . . . . . . . . . . . . Core Remaining (%) 95 | 100 . 95 . . . 96 92 . . . . . Volleys Fired 189 | 7 14 5 45 13 . 11 18 50 8 10 . 8 Largest 2 | 2 2 2 2 2 . 2 2 2 1 1 . 1 Hottest 100 | 40 100 60 50 58 . 56 56 61 25 28 . 36 Shots Fired 349 | 14 26 10 90 26 . 23 36 98 8 10 . 8 Gun 275 | 14 2 . 90 24 . 16 31 83 5 10 . . Cannon 32 | . 22 10 . . . . . . . . . . Launcher 37 | . . . . 2 . 7 5 15 . . . 8 Special 5 | . 2 . . . . . . . 3 . . . Kinetic 307 | 14 24 10 90 24 . 16 31 83 5 10 . . Thermal 2 | . 2 . . . . . . . . . . . Explosive 29 | . . . . 2 . 7 5 15 . . . . Electromagnetic 8 | . . . . . . . . . . . . 8 Robot Hit Streak 23 | 5 7 15 16 9 . 7 15 23 . 2 . 2 Robot Miss Streak 6 | 5 1 . 4 2 . 2 2 5 4 6 . 3 Penetration Max . | . . . . . . . . . . . . . Secondary Targets 2 | . . . . . . . . 2 . . . . Max Gunslinging Chain 1 | . . . . . . . . 1 . . . . Shots Hit Robots 214 | 7 11 8 49 19 . 16 26 66 . 9 . 3 Core Hits 220 | 5 5 6 19 10 . 23 13 130 . 4 . 5 Critical Kills . | . . . . . . . . . . . . . Critical Parts Destroyed 2 | . . . 2 . . . . . . . . . Critical Strikes 3 | . 1 . 2 . . . . . . . . . Destroy 2 | . . . 2 . . . . . . . . . Blast 1 | . 1 . . . . . . . . . . . Melee Attacks 6 | . . . . . . . . . . 6 . . Impact 6 | . . . . . . . . . . 6 . . Slashing . | . . . . . . . . . . . . . Piercing . | . . . . . . . . . . . . . Sneak Attacks . | . . . . . . . . . . . . . Combat Hostiles . | . . . . . . . . . . . . . Follow-up Attacks . | . . . . . . . . . . . . . Damage Inflicted 6500 | 62 169 131 871 456 . 776 587 2955 . 281 . 212 Guns 3082 | 62 16 . 871 308 . 144 400 1193 . 88 . . Cannons 284 | . 153 131 . . . . . . . . . . Explosions 2940 | . . . . 148 . 632 187 1761 . . . 212 Melee 193 | . . . . . . . . . . 193 . . Ramming 1 | . . . . . . . . 1 . . . . Kinetic 3366 | 62 169 131 871 308 . 144 400 1193 . 88 . . Thermal . | . . . . . . . . . . . . . Explosive 2728 | . . . . 148 . 632 187 1761 . . . . Electromagnetic 212 | . . . . . . . . . . . . 212 Impact 193 | . . . . . . . . . . 193 . . Slashing . | . . . . . . . . . . . . . Piercing . | . . . . . . . . . . . . . Highest Corruption 2 | . . . 2 2 2 2 . 2 2 2 2 2 Average Corruption 1 | . . . 1 2 2 2 . 1 2 2 2 2 Corruption Purged 1 | . . . . . . . . 1 . . . . Corruption Blocked . | . . . . . . . . . . . . . Effects 73 | . . . 5 9 5 22 . 7 11 11 2 1 Message Errors 14 | . . . 2 3 2 3 . 1 1 1 . 1 Matter Fused 18 | . . . 2 1 1 4 . 2 2 5 1 . Heat Flow Errors 13 | . . . 1 1 1 3 . 1 4 2 . . Energy Discharges 8 | . . . . 3 . 2 . 2 . 1 . . Parts Rejected 1 | . . . . . . . . 1 . . . . Parts Fused 2 | . . . . . . . . . 1 1 . . Data Loss (minor) 12 | . . . . 1 1 6 . . 2 1 1 . Data Loss (major) 3 | . . . . . . 2 . . 1 . . . Misfires 1 | . . . . . . 1 . . . . . . Alerts 1 | . . . . . . 1 . . . . . . Overload Shots . | . . . . . . . . . . . . . Overflow Damage 68 | . . . . . . . 11 57 . . . . Projectiles . | . . . . . . . . . . . . . Explosions 68 | . . . . . . . 11 57 . . . . Melee . | . . . . . . . . . . . . . Knockbacks 2 | . 1 1 . . . . . . . . . . Impact . | . . . . . . . . . . . . . Kinetic 2 | . 1 1 . . . . . . . . . . Secondary . | . . . . . . . . . . . . . Self-Inflicted Damage 124 | . . . . . . 9 . 84 . . . 31 Shots 7 | . . . . . . 1 . 3 . . . 3 Rammed 1 | . . . . . . . . 1 . . . . Targets Rammed 1 | . . . . . . . . 1 . . . . Kicked . | . . . . . . . . . . . . . Crushed . | . . . . . . . . . . . . . Highest Temperature 276 | . 40 48 250 204 276 243 31 259 202 245 . 6 Average Temperature 47 | . 14 15 35 57 146 59 9 33 91 113 . 4 Received Heat Transfer 1088 | . 15 21 126 42 . 90 117 540 20 60 . 57 Siege Activations . | . . . . . . . . . . . . . Martial Activations . | . . . . . . . . . . . . . Shielding Activations . | . . . . . . . . . . . . . Robots Disrupted . | . . . . . . . . . . . . . Combat Hostiles . | . . . . . . . . . . . . . Robots Corrupted . | . . . . . . . . . . . . . Combat Hostiles . | . . . . . . . . . . . . . Parts Fried . | . . . . . . . . . . . . . Impact Corruptions . | . . . . . . . . . . . . . Robots Melted . | . . . . . . . . . . . . . Combat Hostiles . | . . . . . . . . . . . . . Parts Melted 1 | . . . 1 . . . . . . . . . Heat Transferred . | . . . . . . . . . . . . . Parts Sabotaged . | . . . . . . . . . . . . . Parts Stolen . | . . . . . . . . . . . . . Parts Stripped . | . . . . . . . . . . . . . Power Chain Reactions . | . . . . . . . . . . . . . Alert | -11 -10 -10 -9 -9 -9 -8 -8 -7 -7 -7 -7 -6 ------- Run | Yrd Mat Min Mat Min Exi Min Mat Fac Low Low Dat Pro Maximum Alert Level 2 | . . . . . . . . 2 . . . . Low Security (%) 96 | 100 100 100 100 100 . 100 100 83 . . . . Level 1 1 | . . . . . . . . 7 . . . . Level 2 2 | . . . . . . . . 8 . . . . Level 3 . | . . . . . . . . . . . . . Level 4 . | . . . . . . . . . . . . . Level 5 . | . . . . . . . . . . . . . High Security . | . . . . . . . . . . . . . Max Security . | . . . . . . . . . . . . . Peak Influence 524 | 5 50 50 76 105 . 114 127 524 . . . . Initial 19 | . . 16 . 19 . . 12 . . . . . Average 41 | . 8 10 22 25 . 37 39 87 . . . . Influence Increases 2349 | 10 124 65 329 205 . 313 245 845 . 123 . 90 Destroy 0b10 Robot/C 1480 | . 40 40 220 160 . 200 120 580 . 80 . 40 Destroy 0b10 Robot/NC 160 | 10 10 15 25 . . 15 15 70 . . . . Destroy Leader 302 | . 14 10 68 30 . 30 42 88 . 20 . . Allied During Kill 28 | . . . . . . . . . . 23 . 5 Successful Hack 47 | . 12 . 13 . . . 8 14 . . . . Disable Machine 90 | . 45 . . . . . 15 30 . . . . Destroy Structure 182 | . 3 . 3 15 . 68 30 63 . . . . Lose Combat Pursuer 60 | . . . . . . . 15 . . . . 45 Influence Decreases 2309 | 10 82 107 277 256 1 281 277 418 399 151 . 50 Entered New Map 245 | . . 26 . 33 1 . 20 . 159 6 . . Time Decay 1854 | 10 82 81 277 223 . 281 257 238 230 145 . 30 Lost Part 190 | . . . . . . . . 180 10 . . . Lost Ally 20 | . . . . . . . . . . . . 20 Squads Dispatched 13 | . 1 . 3 . . . 1 8 . . . . Investigation 1 | . 1 . . . . . . . . . . . Extermination 3 | . . . . . . . . 3 . . . . Reinforcement 7 | . . . 3 . . . 1 3 . . . . Assault . | . . . . . . . . . . . . . Garrison 2 | . . . . . . . . 2 . . . . Intercept . | . . . . . . . . . . . . . Searches Triggered . | . . . . . . . . . . . . . Construction Impeded 4 | . . . 1 . . . . 3 . . . . Haulers Reinforced . | . . . . . . . . . . . . . Active Scanning Responses . | . . . . . . . . . . . . . Cargo Convoy Interrupts . | . . . . . . . . . . . . . Stealth | -11 -10 -10 -9 -9 -9 -8 -8 -7 -7 -7 -7 -6 --------- Run | Yrd Mat Min Mat Min Exi Min Mat Fac Low Low Dat Pro Distress Signals 6 | . . . 3 . . . 1 2 . . . . Communications Jammed . | . . . . . . . . . . . . . Distress Signals . | . . . . . . . . . . . . . Times Spotted 108 | . 6 2 23 8 . 9 12 40 1 2 . 5 Peak Tracking Total 12 | . 2 2 4 4 . 4 2 12 1 1 . 4 Tactical Retreats 3 | . . . . . . . 1 . . . . 2 Traps | -11 -10 -10 -9 -9 -9 -8 -8 -7 -7 -7 -7 -6 ------- Run | Yrd Mat Min Mat Min Exi Min Mat Fac Low Low Dat Pro Traps Triggered 4 | . . . 2 . . . . 2 . . . . Indirectly . | . . . . . . . . . . . . . Trap Hack Attempts . | . . . . . . . . . . . . . Triggered . | . . . . . . . . . . . . . Disarmed . | . . . . . . . . . . . . . Reprogrammed . | . . . . . . . . . . . . . Reused . | . . . . . . . . . . . . . Traps Extracted . | . . . . . . . . . . . . . Installed . | . . . . . . . . . . . . . Triggered . | . . . . . . . . . . . . . Machines | -11 -10 -10 -9 -9 -9 -8 -8 -7 -7 -7 -7 -6 ---------- Run | Yrd Mat Min Mat Min Exi Min Mat Fac Low Low Dat Pro Machines Disabled 7 | . 3 . . . . . 1 2 1 . . . Max in Single Turn 2 | . 2 . . . . . 1 2 1 . . . Machines Repaired . | . . . . . . . . . . . . . Machines Dismantled . | . . . . . . . . . . . . . Machines Sabotaged . | . . . . . . . . . . . . . Overloaded Fab Kills . | . . . . . . . . . . . . . Hacking | -11 -10 -10 -9 -9 -9 -8 -8 -7 -7 -7 -7 -6 --------- Run | Yrd Mat Min Mat Min Exi Min Mat Fac Low Low Dat Pro Machines Accessed 17 | . 3 1 2 . 1 . 2 3 . 1 4 . Terminals 10 | . 3 . 2 . . . 2 3 . . . . Fabricators . | . . . . . . . . . . . . . Repair Stations . | . . . . . . . . . . . . . Recycling Units . | . . . . . . . . . . . . . Scanalyzers . | . . . . . . . . . . . . . Garrison Access . | . . . . . . . . . . . . . Total Hacks 55 | . 8 1 4 . 1 . 8 6 . 1 26 . Successful 40 | . 3 1 2 . 1 . 5 1 . 1 26 . Failed 15 | . 5 . 2 . . . 3 5 . . . . Catastrophic 4 | . . . 1 . . . 1 2 . . . . Database Lockouts . | . . . . . . . . . . . . . Manual 19 | . 6 . 3 . 1 . 3 6 . . . . Terminals 26 | . 8 . 4 . . . 8 6 . . . . Fabricators . | . . . . . . . . . . . . . Repair Stations . | . . . . . . . . . . . . . Recycling Units . | . . . . . . . . . . . . . Scanalyzers . | . . . . . . . . . . . . . Garrison Access . | . . . . . . . . . . . . . Terminal Hacks 38 | . 2 1 2 . 1 . 5 . . 1 26 . Record 11 | . . . . . . . . . . . 11 . Part Schematic 9 | . . . . . . . . . . . 9 . Robot Schematic 3 | . . . . . . . . . . . 3 . Robot Analysis 3 | . 1 . 1 . . . 1 . . . . . Prototype ID Bank 4 | . . . . . . . 1 . . . 3 . Open Door 2 | . . 1 . . . . . . . 1 . . Branch Access Points 2 | . 1 . 1 . . . . . . . . . Dispatch Records 1 | . . . . . . . 1 . . . . . Investigation Status 1 | . . . . . . . 1 . . . . . Registered Components 1 | . . . . . . . 1 . . . . . Proto ID Catalog 1 | . . . . . 1 . . . . . . . Fabricator Hacks . | . . . . . . . . . . . . . Repair Station Hacks . | . . . . . . . . . . . . . Recycling Unit Hacks . | . . . . . . . . . . . . . Scanalyzer . | . . . . . . . . . . . . . Garrison Access Hacks . | . . . . . . . . . . . . . Unauthorized Hacks 2 | . 1 . . . . . . 1 . . . . Terminals 2 | . 1 . . . . . . 1 . . . . Assimilate 1 | . 1 . . . . . . . . . . . Botnet 1 | . . . . . . . . 1 . . . . Fabricators . | . . . . . . . . . . . . . Repair Stations . | . . . . . . . . . . . . . Recycling Units . | . . . . . . . . . . . . . Scanalyzers . | . . . . . . . . . . . . . Garrison Access . | . . . . . . . . . . . . . Data Cores Recovered 1 | . . . . . . . 1 . . . . . Used . | . . . . . . . . . . . . . Hacking Detections 7 | . 2 . 1 . . . 1 3 . . . . Full Trace Events 1 | . 1 . . . . . . . . . . . Feedback Events . | . . . . . . . . . . . . . Feedback Blocked . | . . . . . . . . . . . . . Robot Schematics Acquired 3 | . . . . . . . . . . . 3 . Robots Built . | . . . . . . . . . . . . . Authchips . | . . . . . . . . . . . . . Time . | . . . . . . . . . . . . . Total Robot Build Rating . | . . . . . . . . . . . . . Part Schematics Acquired 9 | . . . . . . . . . . . 9 . Parts Built . | . . . . . . . . . . . . . Authchips . | . . . . . . . . . . . . . Time . | . . . . . . . . . . . . . Total Part Build Rating . | . . . . . . . . . . . . . Parts Repaired . | . . . . . . . . . . . . . Time . | . . . . . . . . . . . . . Parts Recycled . | . . . . . . . . . . . . . Recycled Matter . | . . . . . . . . . . . . . Retrieved Matter . | . . . . . . . . . . . . . Retrieved Components . | . . . . . . . . . . . . . Parts Scanalyzed . | . . . . . . . . . . . . . Part Schematics Acquired . | . . . . . . . . . . . . . Parts Damaged . | . . . . . . . . . . . . . Bothacking | -11 -10 -10 -9 -9 -9 -8 -8 -7 -7 -7 -7 -6 ------------ Run | Yrd Mat Min Mat Min Exi Min Mat Fac Low Low Dat Pro Used RIF Installer . | . . . . . . . . . . . . . Robots Hacked . | . . . . . . . . . . . . . Non-combat . | . . . . . . . . . . . . . Combat . | . . . . . . . . . . . . . Robot Hacks Applied . | . . . . . . . . . . . . . Relay Couplers Released . | . . . . . . . . . . . . . Fabnet Peak Effective % . | . . . . . . . . . . . . . Robots Rewired 4 | . . . . . . . . . 4 . . . Allies Hacked . | . . . . . . . . . . . . . Hacks Repelled . | . . . . . . . . . . . . . Allies | -11 -10 -10 -9 -9 -9 -8 -8 -7 -7 -7 -7 -6 -------- Run | Yrd Mat Min Mat Min Exi Min Mat Fac Low Low Dat Pro Total Allies 6 | . . . . . . . . . 4 1 . 1 Largest Group 4 | . . . . . . . . . 4 4 2 3 Highest-Rated Group 216 | . . . . . . . . . 76 216 36 132 Highest-Rated Ally 180 | . . . . . . . . . 20 180 20 96 Total Orders . | . . . . . . . . . . . . . Ally Attacks 33 | . . . . . . . . . 6 17 . 10 Total Damage 1009 | . . . . . . . . . 171 506 . 332 Kills 5 | . . . . . . . . . 1 3 . 1 Allies Corrupted . | . . . . . . . . . . . . . Allies Melted . | . . . . . . . . . . . . . Intel | -11 -10 -10 -9 -9 -9 -8 -8 -7 -7 -7 -7 -6 ------- Run | Yrd Mat Min Mat Min Exi Min Mat Fac Low Low Dat Pro Active Infowar (turns) 8682 | 9 401 341 1055 867 548 1573 767 1547 481 824 138 131 Optics 3887 | . . . . . . . 766 1547 481 824 138 131 Sensors 6194 | . 298 341 1055 867 548 1573 1 . 425 817 138 131 Seismic 1513 | 9 103 . . . . . . 1401 . . . . Robot Analysis Total 3 | . 1 . 1 . . . 1 . . . . . Derelict Logs Recovered 6 | . . 1 . 1 . . . . 1 2 . 1 Drone Launches . | . . . . . . . . . . . . . Drone Recoveries . | . . . . . . . . . . . . . Exploration | -11 -10 -10 -9 -9 -9 -8 -8 -7 -7 -7 -7 -6 ------------- Run | Yrd Mat Min Mat Min Exi Min Mat Fac Low Low Dat Pro Turns Passed 8815 | 89 401 372 1075 867 548 1573 769 1547 481 824 138 131 Spaces Moved 5426 | 54 301 315 609 391 261 701 284 684 804 872 83 67 Core 141 | 14 . . . . . . . 6 22 99 . . Treads 440 | . 1 . . . . . 1 112 . 176 83 67 Legs . | . . . . . . . . . . . . . Wheels 3404 | 40 300 315 609 391 261 701 283 504 . . . . Hover . | . . . . . . . . . . . . . Flight 1441 | . . . . . . . . 62 782 597 . . Fastest Speed 32 | 50 95 95 95 210 210 210 210 32 32 34 165 165 Average Speed 133 | 95 95 95 132 210 210 210 210 186 35 62 165 165 Slowest Speed 320 | 150 160 110 210 210 210 210 320 312 100 170 165 165 Overloaded Moves . | . . . . . . . . . . . . . Propulsion Burnouts . | . . . . . . . . . . . . . Robots Hopped 1 | . . . . . . . . . 1 . . . Potential Cave-ins . | . . . . . . . . . . . . . Cave-ins Triggered . | . . . . . . . . . . . . . Exploration Rate (%) 53 | 4 44 45 48 93 61 99 26 22 75 85 75 12 Regions Visited 12 Branch Regions 8 Pre-discovered Areas 1 | . . . . . . . . . . . 1 . Known Exits Taken 6 | . 1 . 1 . . . . 1 1 1 1 . Unknown Exits Taken 6 | 1 . 1 . 1 1 1 1 . . . . . Scrap Searched 12 | . . . . 3 . 2 . . 2 5 . . Spaces Dug . | . . . . . . . . . . . . . Terrain Destroyed 207 | . . . . 15 . 90 41 61 . . . . Melee . | . . . . . . . . . . . . . Projectile 1 | . . . . . . . 1 . . . . . AOE 206 | . . . . 15 . 90 40 61 . . . . Terrain Rammed . | . . . . . . . . . . . . . Walls Destroyed . | . . . . . . . . . . . . . Machines Disabled . | . . . . . . . . . . . . . Actions | -11 -10 -10 -9 -9 -9 -8 -8 -7 -7 -7 -7 -6 --------- Run | Yrd Mat Min Mat Min Exi Min Mat Fac Low Low Dat Pro Total 6704 | 76 386 375 829 421 263 781 425 861 990 1133 84 80 Wait 855 | . 48 47 135 12 . 63 106 56 157 226 2 3 Move 5412 | 53 300 314 608 390 260 700 283 683 801 871 82 67 Hop 1 | . . . . . . . . . 1 . . . Pick Up 56 | 7 5 3 12 5 1 2 4 11 2 4 . . Fast Attach 46 | 7 7 . 5 . . . 3 14 4 6 . . Attach 22 | . . . 1 . . 2 3 12 2 . . 2 Detach 5 | . . . 1 . 2 . 1 . . 1 . . Swap 30 | 1 2 3 8 1 . 3 3 6 1 2 . . Drop 60 | 1 10 3 14 . . . 4 20 2 6 . . Fire 189 | 7 14 5 45 13 . 11 18 50 8 10 . 8 Melee 6 | . . . . . . . . . . 6 . . Ram 1 | . . . . . . . . 1 . . . . Kick . | . . . . . . . . . . . . . Crush . | . . . . . . . . . . . . . Escape Stasis 8 | . . . . . . . . 8 . . . . Rewire 13 | . . . . . . . . . 12 1 . . Trap . | . . . . . . . . . . . . . Miscellaneous . | . . . . . . . . . . . . . Route ------- -11/Scrapyard -10/Materials (discovered 3 exits: *Mat x2 / *Min) -10/Mines -9/Materials (discovered 2 exits: *Mat / *Min) -9/Mines (discovered 3 exits: *Mat x2 / *Exi) -9/Exiles -8/Mines (discovered 2 exits: *Mat x2) -8/Materials -7/Factory -7/Lower Caves -7/Lower Caves (discovered 3 exits: *Fac x2 / *Dat) -7/Data Miner -6/Proximity Caves History --------- Turn | Location | Event 21 | -11/Scrapyard | Discovered new exit (range 15) 90 | -11/Scrapyard | Entered Materials 150 | -10/Materials | Identified exit to Mines 168 | -10/Materials | Discovered new exit (range 16) 311 | -10/Materials | Build established: Mutant 426 | -10/Materials | Discovered new exit (range 12) 491 | -10/Materials | Entered Mines 533 | -10/Mines | Discovered new exit (range 7) 541 | -10/Mines | Met a Derelict who couldn't figure out how to use a Trap Extractor 775 | -10/Mines | Assembled infested the area 780 | -10/Mines | Assisted by a Guerilla fighting off Assembled 798 | -10/Mines | Learned Materials stockpile data 863 | -10/Mines | Entered Materials 863 | -9/Materials | Evolved 2 slots: Propulsion x1, Utility x1 944 | -9/Materials | Identified exit to Mines 1409 | -9/Materials | Discovered new exit (range 16) 1938 | -9/Materials | Entered Mines 2048 | -9/Mines | Discovered new exit (range 8) 2126 | -9/Mines | Deemed a non-threat by the Exiles lab entrance 2126 | -9/Mines | Discovered new exit (range 5) 2310 | -9/Mines | Received a Rocket Launcher from a helpful Derelict 2333 | -9/Mines | Discovered new exit (range 7) 2423 | -9/Mines | Learned Materials emergency access door positions 2805 | -9/Mines | Entered Exiles 2860 | -9/Exiles | Met 8R-AWN 2899 | -9/Exiles | Met EX-HEX 2977 | -9/Exiles | Met EX-BIN 3002 | -9/Exiles | Aligned with FarCom system 3004 | -9/Exiles | Given EX-Vault access code 3071 | -9/Exiles | Opened EX-Vault 3088 | -9/Exiles | Found Chronowheel 3131 | -9/Exiles | Warned to stay clear of 0b10 Research branches 3157 | -9/Exiles | Exiles lab attacked by MAIN.C 3284 | -9/Exiles | Discovered new exit (range 14) 3353 | -9/Exiles | Left Exiles lab with Chronowheel 3353 | -9/Exiles | Entered Mines 3439 | -8/Mines | Discovered new exit (range 8) 3644 | -8/Mines | Build established: Skirmisher 4499 | -8/Mines | Discovered new exit (range 10) 4926 | -8/Mines | Entered Materials 4926 | -8/Materials | Evolved 2 slots: Propulsion x1, Utility x1 5239 | -8/Materials | Build established: Mutant 5472 | -8/Materials | Discovered new exit (range 20) 5695 | -8/Materials | Entered Factory 5695 | -7/Factory | Evolved 2 slots: Propulsion x1, Utility x1 7090 | -7/Factory | Garrison activated, responded to threat 7136 | -7/Factory | Destroyed 11 combat bots 7144 | -7/Factory | Lost 6 parts (4n1u1w) 7218 | -7/Factory | Core integrity fell below 50% 7239 | -7/Factory | Discovered new exit (range 10) 7242 | -7/Factory | Identified exit to Lower Caves 7242 | -7/Factory | Entered Lower Caves 7259 | -7/Lower Caves | Lost 10 parts (1p5n2u2w) 7316 | -7/Lower Caves | Identified exit to Lower Caves 7368 | -7/Lower Caves | Encountered a Warlord checkpoint 7449 | -7/Lower Caves | Attacked by a delusional Derelict stockpiling Unaware 7723 | -7/Lower Caves | Entered another Lower Caves area 7723 | -7/Lower Caves | Accompanied by 4 allies 7775 | -7/Lower Caves | Discovered new exit (range 12) 7779 | -7/Lower Caves | Identified exit to Factory 7838 | -7/Lower Caves | Build established: Commander-Scout 8117 | -7/Lower Caves | Spotted B-75 Beast 8141 | -7/Lower Caves | Build established: Derelict-Scout 8183 | -7/Lower Caves | Core integrity fell below 20% 8198 | -7/Lower Caves | Allies destroyed B-75 Beast 8219 | -7/Lower Caves | Lost 4 parts (2n1u1w) 8359 | -7/Lower Caves | 7V-RTL showed up to help 8362 | -7/Lower Caves | 7V-RTL revealed a hidden path 8460 | -7/Lower Caves | Identified exit to Data Miner 8535 | -7/Lower Caves | Build established: Mutant 8547 | -7/Lower Caves | Entered Data Miner 8547 | -7/Data Miner | Accompanied by 2 allies 8547 | -7/Data Miner | Discovered new exit (range 6) 8572 | -7/Data Miner | Met Data Miner 8617 | -7/Data Miner | Learned location of Section 7 (-2) 8617 | -7/Data Miner | Acquired the access code to Warlord's prototype stash 8643 | -7/Data Miner | Received God Mode back door access code from Data Miner 8679 | -7/Data Miner | Identified exit to Proximity Caves 8685 | -7/Data Miner | Entered Proximity Caves 8685 | -6/Proximity Caves | Accompanied by 2 allies 8725 | -6/Proximity Caves | Learned location of 2 exits from Factory 8740 | -6/Proximity Caves | Escorted by Enhanced Grunt 8806 | -6/Proximity Caves | Lost 3 allies 8816 | -6/Proximity Caves | Destroyed by G-67 Veteran with Field Laser Last Messages --------------- Mni. Assault Cannon 08639_ System corrupted: Matter fused (-8). Data Miner: I've just received further instructions. God Mode is nearly complete and we think you might be able to put it to better use than Warlord, so if you see an opportunity, hack it and enter \\LKHJ to gain control via the back door I've installed. Now off with you. 08679_ EXIT=IDENTIFIED: PROXIMITY CAVES LOCATION=PROXIMITY CAVES GOAL=ESCAPE 08725_ Acquired derelict log, extracted data. Data stored: Factory exits (x2). 08740_ Enhanced Grunt: "Protecting LRC-V3." 08751_ Enhanced Grunt suffers critical hit (Burn). 08764_ L:FL: AHEI>RG&NS>HYCCB VVCPXNEEW<>B&J4 08810_ G-50 Soldier destroyed. Map ----- +----------------------------------------------------+ | | | | | | | | | | | | | | | ?????????????????????????????????????????????????? | | ?????????????????????????????????????????????????? | | ?????????????????????????????????????????????????? | | ?????????????????????????????????????????????????? | | ?????????????????????????????????????????????????? | | ?????????????????????????????????????????????????? | | ?????????????????????????????????????????????????? | | ?????????????????????????????????????????????????? | | ?????????????????????????????????????????????????? | | ?????????????????????????????????????????????????? | | ?????????????????????####????????????????????????? | | ????????????????????##""#????????????????????????? | | ???????????????????##"""?????????????????????????? | | ???????????????????#"""##????????????????????????? | | ????##?????###?????# "##???????????????????????? | | ???## ##### #????# ##??????????????????????? | | #### ##### #??????????????????????? | | #??????????????????????? | | !g @#??????????????????????? | | ?# [%g ##???h??????????????????? | | ????## ## =####???????????????????????? | | ?????## ?????## ##??????????????????????????? | | ??????????????# ## #???????????????????????????? | | ??????????????# ## ??????????????????????????? | | ??????????????# ## #????????????????????????? | | ??????????????# ### #???????????????????????? | | ??????????????# #### #???????????????????????? | | ??????????????# #?# #???????????????????????? | | ??????????????# #?? #??????????????????????? | | ??????????????### #?? ?????????????????????? | | ????????????????# #?? ????????????????????? | | ???????????????## #??? ???????????????????? | | ??????????????## #??? #### ??????????????????? | | ??????????????# #??? #??? #?????????????????? | | ############### #???? ???? #?????????????????? | | ## ##???? ????????????????????????? | | #????? ????????????????????????? | | ######### #??????????????????????????????? | | #???????## ###????????????????????????????? | | ##???????## ##???????? #??????????????? | | ##???????## ### #??????????????? | | ##???????# #????????????????????? | | ######### ##????????????????????? | +----------------------------------------------------+ Best States ------------- Heat Dissipation 34 Energy Generation 19 Energy Capacity 315 Matter Stores 450 Matter Capacity 450 Sight Range 20 Robot Scan Range 15 Terrain Scan Density 10 Armor Coverage 225 Evasion (%) 63 Targeting Accuracy 6 Target Analysis 5 Recoil Reduction 4 Offensive Hacking 10 Authchip Count 1 Item Schematics ----------------- Combat Drone Bay | -7/Data Miner | Free Lgt. Regenerative Plating | -7/Data Miner | Free Cld. Cesium-ion Thruster | -7/Data Miner | Free Exp. Targeting Computer | -7/Data Miner | Free Antimatter Cannon | -7/Data Miner | Free Imp. Component Analysis Suite | -7/Data Miner | Free Arm. Medium Treads | -7/Data Miner | Free KE Penetrator | -7/Data Miner | Free Adv. Signal Interpreter | -7/Data Miner | Free Robot Schematics ------------------ H-55 Commando | -7/Data Miner | Free B-48 Gladiator | -7/Data Miner | Free Y-54 Guardian | -7/Data Miner | Free Fabricated ------------ Nothing Repaired ---------- Nothing Alien Tech Used ----------------- None Achievements -------------- None Challenges ------------ None Game ------ Seed EfficiencyNeutronPod Manual? 0 Play Time 00:56:37 Cumulative 104.6 hours Start 2025.08.07 @ 20:58:06 End 2025.08.08 @ 12:47:52 Sessions 2 Manual Loads 0 Difficulty Rogue Special Mode None Game No. 129 Rogue 129 Adventurer 0 Explorer 0 Win Type - Total 0 Types 0/0/0/0/0/0/0/0/0/0 Lore% 62 Gallery% 46 Achievement% 44 Wizard Run 0 Options --------- Layout 1 ASCII 0 Keyboard 0 Movement Arrows Keybinds 0 Fullscreen 1 Font 24/Smallcaps Map View 50x35 Zoom Use 0% Tactical HUD 1 Map Filters NONE Filters NONE Steam 1 RUN: 0756780d-979c-4849-a8b0-40df8c232a61